bitfinex-derivatives/quotes_ETHF0:USTF0_20250101
["timestamp","ask_amount","ask_price","bid_price","bid_amount"]
[1735734550840,0.8959,3352.9,3352.7,0.29884]
[1735734551042,0.4561,3352.9,3352.8,0.29883]
[1735734551343,0.75493,3352.9,3352.6,2.56271114]
[1735734551843,0.75493,3352.9,3352.7,0.29884]
[1735734552342,0.75493,3352.9,3352.6,2.56271114]
[1735734552544,0.29884,3352.8,3352.6,2.26386114]
[1735734552840,0.29885,3352.7,3352.5,3.2078]
[1735734553040,0.4239,3352.8,3352.5,3.2078]
[1735734553345,0.29885,3352.6,3352.5,3.2078]
[1735734555043,0.4239,3352.8,3352.5,3.2078]
[1735734555238,0.4561,3352.9,3352.5,3.2078]
[1735734555550,0.29884,3352.8,3352.6,0.29885]
[1735734557150,0.75493,3352.9,3352.5,3.2078]
[1735734557346,0.75493,3352.9,3352.6,0.29885]
[1735734557650,0.29884,3352.8,3352.6,0.29885]
[1735734559246,0.29884,3352.8,3352.6,0.75135]
[1735734560146,0.29885,3352.7,3352.5,3.50666]
[1735734560350,0.4561,3352.9,3352.5,3.2078]
[1735734560552,0.29884,3352.8,3352.6,0.29885]
[1735734560851,0.75493,3352.9,3352.7,0.29884]
[1735734561240,3.2078,3353.2,3352.6,2.26386114]
[1735734561446,3.5066,3353.2,3353.0,0.29881]
[1735734562245,3.2078,3353.2,3352.7,0.4582]
[1735734562446,3.2078,3353.2,3352.9,2.26386114]
[1735734562648,3.2078,3353.9,3353.1,3.2078]
[1735734562850,0.29878,3353.5,3353.3,0.29879]
[1735734563041,0.29878,3353.5,3353.2,0.72799]
[1735734563246,0.29878,3353.5,3353.2,0.4292]
[1735734563753,0.29879,3353.4,3353.2,0.728]
[1735734563943,0.29879,3353.3,3353.2,0.4292]
[1735734564951,0.74691,3353.7,3353.1,3.2078]
[1735734565251,1.1669,3353.2,3353.1,3.2078]
[1735734566263,0.8681,3353.2,3352.7,3.2078]
[1735734566449,0.29883,3352.8,3352.7,3.2078]
[1735734566652,0.29886,3352.6,3352.3,1.66508]
[1735734567053,0.29886,3352.5,3352.3,1.66508]
[1735734567358,3.2078,3353.0,3352.3,1.66507]
[1735734567659,0.29886,3352.6,3352.3,1.66507]
[1735734569256,3.2078,3353.0,3352.3,1.66507]
[1735734569455,0.29887,3352.4,3352.3,1.3662]
[1735734569755,3.2078,3353.0,3352.3,1.3662]
[1735734569950,0.29887,3352.5,3352.3,1.21348]
[1735734570252,3.2078,3353.0,3352.3,0.9146]
[1735734570456,0.29888,3352.3,3352.2,3.2078]
[1735734573056,1.3555,3352.5,3352.2,3.2078]
[1735734573257,0.29885,3352.7,3352.4,0.29886]
[1735734573463,0.29885,3352.6,3352.4,0.29886]
[1735734573758,0.29885,3352.6,3352.5,0.4347]
[1735734577569,0.4324,3352.9,3352.5,0.4347]
[1735734577776,0.29883,3352.8,3352.5,0.73356]
[1735734578166,0.4324,3352.9,3352.5,0.4347]
[1735734578372,0.29885,3352.6,3352.5,0.4347]
[1735734579171,0.29885,3352.6,3352.5,0.8733]
[1735734579682,0.4324,3352.9,3352.5,1.17216]
[1735734579683,0.29883,3352.8,3352.5,1.17216]
[1735734579976,0.8732,3353.1,3352.5,0.8733]
[1735734580279,0.29882,3353.0,3352.7,0.29884]
[1735734580778,0.8732,3353.1,3352.6,0.75315]
[1735734580972,0.29884,3352.8,3352.6,0.75315]
[1735734581279,0.29884,3352.7,3352.6,0.4543]
[1735734581879,1.62024,3353.1,3352.5,0.4347]
[1735734582074,0.71985,3352.6,3352.5,0.4347]
[1735734582676,0.421,3352.6,3352.2,3.95808]
[1735734582871,0.29887,3352.5,3352.3,0.29888]
[1735734583076,0.29888,3352.4,3352.2,3.95809]
[1735734584174,0.29888,3352.4,3352.2,3.95808]
[1735734584599,0.4606,3352.5,3352.2,3.2078]
[1735734584774,0.29888,3352.3,3352.2,3.2078]
[1735734587079,0.29888,3352.3,3352.2,3.50669]
[1735734588678,0.29888,3352.3,3352.2,3.2078]
[1735734592580,0.29888,3352.3,3352.2,3.50669]
[1735734593475,0.29888,3352.3,3352.2,3.2078]
[1735734594182,0.29888,3352.3,3352.2,3.50669]
[1735734595885,0.29888,3352.3,3352.2,3.2078]
[1735734596586,0.29888,3352.3,3352.2,3.50669]
[1735734597182,1.16815,3352.6,3352.2,3.50669]
[1735734597183,0.71986,3352.6,3352.5,0.29886]
[1735734597383,0.29886,3352.6,3352.5,0.29886]
[1735734598276,0.8833,3352.8,3352.4,0.4616]
[1735734598486,0.29886,3352.5,3352.4,0.76047]
[1735734598685,0.29886,3352.5,3352.4,0.4616]
[1735734599389,0.29888,3352.3,3352.2,3.2078]
[1735734599580,0.29888,3352.4,3352.3,0.29888]
[1735734599789,0.29888,3352.3,3352.2,3.2078]
[1735734603889,3.2078,3353.3,3352.2,3.2078]
[1735734604089,4.074,3353.3,3352.9,0.29882]
[1735734604285,0.2988,3353.2,3353.0,0.76092]
[1735734604590,0.2988,3353.2,3353.0,0.4621]
[1735734604789,0.2988,3353.2,3353.0,0.76092]
[1735734604985,4.074,3353.3,3353.0,0.4621]
[1735734605289,0.2988,3353.2,3353.0,0.76091]
[1735734605488,0.29881,3353.1,3353.0,0.4621]
[1735734605885,4.074,3353.3,3352.8,3.2078]
[1735734606084,0.29883,3352.9,3352.8,3.2078]
[1735734607791,0.29886,3352.5,3352.4,3.2078]
[1735734609283,3.2078,3352.9,3352.4,3.2078]
[1735734609488,2.7521,3353.6,3352.8,3.2078]
[1735734609489,2.7521,3353.4,3352.8,3.2078]
[1735734609685,0.29883,3352.9,3352.8,3.2078]
[1735734610196,1.04586,3353.1,3352.5,0.4515]
[1735734610394,0.29885,3352.6,3352.5,0.4515]
[1735734610889,0.29885,3352.7,3352.5,0.75036]
[1735734611085,0.29881,3353.1,3352.9,0.29882]
[1735734611288,0.29883,3352.9,3352.6,3.50664]
[1735734611485,0.29883,3352.9,3352.7,0.29884]
[1735734611683,3.2078,3353.2,3352.7,0.29884]
[1735734611887,0.29875,3353.8,3353.2,0.2988]
[1735734612095,0.29875,3353.8,3353.5,0.29876]
[1735734612288,0.29875,3353.8,3353.6,0.4503]
[1735734612685,0.29874,3353.9,3353.6,0.74906]
[1735734612894,0.29875,3353.8,3353.6,0.4503]
[1735734614193,4.0646,3354.1,3353.6,0.4503]
[1735734614194,0.29875,3353.7,3353.6,0.4503]
[1735734616601,4.0646,3354.1,3353.6,0.4503]
[1735734616999,0.29875,3353.7,3353.5,0.29877]
[1735734617494,0.29877,3353.6,3353.4,0.72268]
[1735734617695,0.29876,3353.7,3353.5,0.29877]
[1735734618000,0.29875,3353.9,3353.6,0.29876]
[1735734618197,0.29875,3353.8,3353.6,0.29876]
[1735734618599,0.29876,3353.7,3353.5,0.29877]
[1735734619198,4.0646,3354.1,3353.4,0.4239]
[1735734619400,0.29875,3353.8,3353.6,0.29876]
[1735734619595,0.29875,3353.7,3353.5,0.29877]
[1735734619800,0.29875,3353.8,3353.6,0.29876]
[1735734621500,0.29873,3354.0,3353.8,0.29874]
[1735734621801,0.29874,3353.9,3353.7,0.29875]
[1735734622215,0.29874,3353.9,3353.6,3.2078]
[1735734622216,0.29874,3353.9,3353.8,0.4464]
[1735734623703,0.29873,3354.0,3353.8,0.74514]
[1735734623905,0.29874,3353.9,3353.8,0.4464]
[1735734624111,0.8568,3354.1,3353.8,0.8924]
[1735734624309,0.29873,3354.0,3353.8,1.19115]
[1735734625202,0.29874,3353.9,3353.8,1.19115]
[1735734625402,0.29873,3354.0,3353.8,1.19115]
[1735734626005,0.72422,3354.1,3353.9,0.29873]
[1735734626605,0.29873,3354.0,3353.8,1.19114]
[1735734627307,0.72423,3354.1,3353.9,0.29874]
[1735734627511,0.4255,3354.1,3353.9,0.29874]
[1735734627710,0.29873,3354.0,3353.8,1.19114]
[1735734628311,0.29873,3354.1,3353.9,0.29873]
[1735734628504,0.29873,3354.1,3354.0,0.4305]
[1735734629207,0.4201,3354.4,3354.0,0.4305]
[1735734629408,0.29872,3354.2,3354.0,0.72922]
[1735734630209,0.4201,3354.4,3354.0,0.4305]
[1735734630407,0.29872,3354.1,3354.0,0.4305]
[1735734631009,0.2987,3354.3,3354.1,0.29872]
[1735734631305,0.29871,3354.2,3354.1,0.29872]
[1735734631510,0.29871,3354.3,3354.1,0.29872]
[1735734632211,0.29871,3354.2,3354.0,0.4305]
[1735734632410,0.29871,3354.2,3354.0,0.72922]
[1735734633316,0.29872,3354.2,3354.0,0.72922]
[1735734633811,0.29872,3354.2,3354.0,0.4305]
[1735734634412,3.2078,3354.6,3354.1,0.29872]
[1735734634710,0.29871,3354.2,3354.0,0.29872]
[1735734634910,0.29872,3354.2,3354.0,0.29872]
[1735734635811,0.29872,3354.1,3354.0,0.29872]
[1735734636311,0.29872,3354.1,3354.0,0.29873]
[1735734636511,3.95451,3354.6,3353.9,0.29873]
[1735734636711,0.29873,3354.0,3353.9,0.29873]
[1735734637202,0.29873,3354.0,3353.9,0.29874]
[1735734637403,0.29873,3354.0,3353.9,0.29873]
[1735734637603,0.74674,3354.4,3353.8,2.1004]
[1735734637804,0.29873,3354.0,3353.9,0.29873]
[1735734638312,0.74674,3354.4,3353.8,2.1004]
[1735734638608,0.29874,3353.9,3353.8,2.1004]
[1735734641115,0.29874,3353.9,3353.8,0.8924]
[1735734643014,0.29874,3353.9,3353.8,4.1002]
[1735734643912,0.29874,3353.9,3353.8,3.6542]
[1735734647835,0.29874,3353.9,3353.8,3.2078]
[1735734648017,0.29876,3353.6,3353.5,0.4263]
[1735734649224,0.73586,3353.6,3353.5,0.4263]
[1735734649919,0.29876,3353.6,3353.5,0.4263]
[1735734650915,0.8744,3353.7,3353.4,3.2078]
[1735734651118,0.29877,3353.5,3353.4,3.50658]
[1735734652919,0.29877,3353.5,3353.4,3.2078]
[1735734654119,0.29877,3353.5,3353.4,3.50658]
[1735734654522,0.29876,3353.6,3353.4,3.50658]
[1735734654824,0.29877,3353.6,3353.4,3.50658]
[1735734655027,0.8744,3353.7,3353.4,3.50658]
[1735734655328,0.29877,3353.5,3353.4,3.50658]
[1735734655522,0.29877,3353.5,3353.4,3.2078]
[1735734656115,0.29877,3353.5,3353.4,3.50658]
[1735734656632,0.29877,3353.5,3353.4,3.2078]
[1735734658530,0.29877,3353.5,3353.4,3.50658]
[1735734659923,0.29877,3353.5,3353.4,3.2078]
[1735734662829,0.8744,3353.7,3353.4,3.2078]
[1735734663028,0.29877,3353.5,3353.4,3.2078]
[1735734664228,0.29877,3353.5,3353.4,3.50658]
[1735734664830,0.29877,3353.5,3353.4,3.2078]
[1735734666738,0.2988,3353.2,3353.1,0.4219]
[1735734668134,0.2988,3353.2,3353.1,0.72071]
[1735734669332,0.2988,3353.2,3353.1,0.4219]
[1735734671834,1.81686964,3353.5,3353.0,3.2078]
[1735734672033,0.76291,3353.1,3353.0,3.2078]
[1735734674932,1.83282964,3353.1,3353.0,3.2078]
[1735734678441,0.76291,3353.1,3353.0,3.2078]
[1735734678742,1.83282964,3353.1,3353.0,3.2078]
[1735734678939,1.53401964,3353.1,3352.6,3.2078]
[1735734679242,2.7521,3353.3,3353.0,3.2078]
[1735734679445,1.06991964,3353.8,3353.1,1.98481964]
[1735734679639,0.8879,3353.9,3353.6,3.2078]
[1735734679840,0.29875,3353.8,3353.6,3.2078]
[1735734680039,0.29875,3353.8,3353.7,0.4546]
[1735734681047,1.36866964,3353.8,3353.7,0.4546]
[1735734682240,0.29875,3353.8,3353.7,0.4546]
[1735734685948,3.14791819,3353.9,3353.6,3.2078]
[1735734686156,0.29875,3353.7,3353.6,3.2078]
[1735734686453,0.29879,3353.3,3353.2,3.2078]
[1735734686746,0.29882,3353.0,3352.8,0.72633]
[1735734686954,0.29882,3353.0,3352.9,3.2078]
[1735734691047,0.8715,3353.2,3352.9,3.2078]
[1735734691247,2.7521,3353.4,3353.0,0.29881]
[1735734691447,0.2988,3353.2,3353.0,1.17571]
[1735734691842,0.2988,3353.2,3353.0,1.60341]
[1735734692443,0.29881,3353.1,3353.0,1.3046]
[1735734692946,0.29879,3353.3,3353.1,0.2988]
[1735734693149,2.7521,3353.4,3353.3,0.29879]
[1735734693652,2.7521,3353.4,3353.0,1.3046]
[1735734694151,0.4446,3353.7,3353.0,1.3046]
[1735734694346,0.29879,3353.3,3353.0,1.3046]
[1735734694544,0.29879,3353.3,3353.1,0.2988]
[1735734695752,0.29879,3353.4,3353.2,0.29879]
[1735734696749,0.2988,3353.3,3353.1,0.2988]
[1735734697148,0.29881,3353.2,3353.0,1.60342]
[1735734697752,0.29881,3353.1,3353.0,1.3046]
[1735734699743,0.29881,3353.1,3353.0,0.8769]
[1735734700145,0.29881,3353.1,3353.0,0.4413]
[1735734700854,0.29882,3353.0,3352.9,3.2078]
[1735734701055,0.75232,3353.0,3352.9,3.2078]
[1735734702955,0.29882,3353.0,3352.9,3.2078]
[1735734711561,0.75229,3353.4,3353.2,0.29879]
[1735734711762,0.00192751,3353.8,3353.4,0.29878]
[1735734711962,0.29877,3353.6,3353.5,0.4448]
[1735734712559,0.00192751,3353.8,3353.5,0.29877]
[1735734712560,0.29876,3353.7,3353.5,0.29877]
[1735734712757,0.00192751,3353.8,3353.0,0.4448]
[1735734712955,0.29877,3353.5,3353.3,0.29879]
[1735734713363,0.29877,3353.6,3353.4,0.29878]
[1735734713767,0.29877,3353.6,3353.5,0.4371]
[1735734715369,0.29879,3353.3,3353.2,0.4584]
[1735734718272,0.29881,3353.1,3353.0,0.4371]
[1735734719169,0.29882,3353.0,3352.9,3.2078]
[1735734720967,0.29882,3353.0,3352.9,3.50663]
[1735734721275,0.29879,3353.3,3353.2,0.2988]
[1735734721569,5.01211819,3353.7,3353.0,0.29881]
[1735734721570,0.29881,3353.1,3353.0,0.29881]
[1735734722269,0.2988,3353.2,3353.1,0.29881]
[1735734722771,0.29881,3353.1,3353.0,0.29881]
[1735734723068,0.29882,3353.0,3352.9,3.2078]
[1735734723467,0.29882,3353.0,3352.9,3.50662]
[1735734724382,0.29882,3353.0,3352.9,3.2078]
[1735734724669,0.29882,3353.0,3352.9,3.50663]
[1735734727765,0.29881,3353.1,3353.0,0.29881]
[1735734728166,0.74692,3353.6,3352.9,3.2078]
[1735734728474,1.3542,3353.7,3353.3,0.29879]
[1735734728675,1.3542,3353.7,3353.4,0.4401]
[1735734728876,0.29877,3353.5,3353.4,0.9064]
[1735734729768,1.3542,3353.7,3353.4,0.9064]
[1735734729968,1.21316,3353.7,3353.5,0.29877]
[1735734730573,1.21316,3353.7,3353.4,0.9064]
[1735734730574,0.00192751,3353.8,3353.4,0.9064]
[1735734730771,0.29876,3353.7,3353.5,0.29877]
[1735734731776,0.29876,3353.6,3353.4,4.41298]
[1735734732778,0.29877,3353.5,3353.4,3.6479]
[1735734733078,0.75387,3353.5,3353.4,3.6479]
[1735734734076,0.75387,3353.5,3353.4,3.2078]
[1735734734274,0.4551,3353.5,3353.0,3.2078]
[1735734734473,0.29881,3353.1,3353.0,3.2078]
[1735734734973,0.438,3353.4,3353.0,3.2078]
[1735734735174,0.438,3353.4,3353.0,3.50661]
[1735734735374,0.29881,3353.1,3353.0,3.50661]
[1735734735977,0.29881,3353.1,3353.0,3.2078]
[1735734736681,0.29881,3353.1,3353.0,3.50662]
[1735734736981,0.29881,3353.1,3353.0,3.2078]
[1735734745479,0.29886,3352.5,3352.4,7.8844724]
[1735734745673,0.29886,3352.5,3352.4,8.3343724]
[1735734746073,0.29886,3352.5,3352.4,3.6577]
[1735734746871,0.29886,3352.5,3352.4,3.95657]
[1735734747881,0.29886,3352.5,3352.4,3.6577]
[1735734749179,0.29886,3352.5,3352.4,3.2078]
[1735734750577,2.68341819,3352.7,3352.1,2.71331161]
[1735734750777,0.2989,3352.1,3352.0,0.4418]
[1735734751575,0.2989,3352.1,3351.9,3.6312]
[1735734751576,0.4381,3352.3,3351.9,3.2078]
[1735734751779,0.29891,3352.0,3351.9,3.2078]
[1735734758976,3.1754,3352.2,3351.9,3.2078]
[1735734759175,2.7521,3352.2,3351.9,3.2078]
[1735734759384,3.05099,3352.2,3352.0,1.6127]
[1735734759587,3.05099,3352.2,3352.0,42.4127]
[1735734759989,2.7521,3352.2,3352.0,1.3138]
[1735734760287,3.2078,3352.5,3352.0,0.8707]
[1735734760288,0.2989,3352.1,3352.0,0.8707]
[1735734761579,2.26001819,3352.3,3351.9,3.2078]
[1735734761783,0.29892,3351.8,3351.7,3.6592]
[1735734767590,3.12771819,3352.0,3351.4,0.4257]
[1735734767785,0.29895,3351.5,3351.4,0.8735]
[1735734774992,0.29897,3351.3,3351.2,3.2078]
[1735734775196,0.299,3350.9,3350.8,3.6496]
[1735734776588,0.299,3350.9,3350.8,3.2078]
[1735734776985,1.174,3350.9,3350.8,3.2078]
[1735734777185,0.875,3350.9,3350.6,0.4418]
[1735734777401,0.29906,3350.3,3350.2,0.882]
[1735734782103,0.875,3350.9,3350.2,0.882]
[1735734782404,0.29899,3351.1,3350.9,0.299]
[1735734782602,0.29899,3351.1,3351.0,1.6099]
[1735734783000,0.29899,3351.1,3351.0,1.3109]
[1735734784202,0.29899,3351.1,3351.0,0.4413]
[1735734784405,2.26001819,3351.2,3350.8,3.2078]
[1735734784697,0.29904,3350.5,3350.4,3.2078]
[1735734785295,0.29906,3350.3,3350.2,1.3608]
[1735734785701,0.29906,3350.3,3350.2,0.9035]
[1735734787200,2.26001819,3350.9,3350.4,0.29904]
[1735734787401,0.29901,3350.9,3350.7,0.29902]
[1735734787603,0.29901,3350.9,3350.8,0.4325]
[1735734787796,0.299,3351.0,3350.8,1.16401]
[1735734788005,1.3112,3351.4,3350.9,3.2078]
[1735734788303,0.29895,3351.6,3351.3,3.50676]
[1735734788500,0.29893,3351.8,3351.5,0.29895]
[1735734788702,0.29893,3351.8,3351.7,3.2078]
[1735734789405,3.13601819,3352.4,3351.7,3.50673]
[1735734789612,0.29892,3351.9,3351.7,3.50673]
[1735734790012,0.29891,3352.0,3351.7,3.50673]
[1735734790217,0.29891,3352.0,3351.7,3.2078]
[1735734790411,0.29891,3352.0,3351.7,3.50673]
[1735734791812,3.13601819,3352.4,3351.7,3.2078]
[1735734792008,0.29892,3351.8,3351.7,3.2078]
[1735734794424,0.74721,3352.3,3351.7,3.2078]
[1735734794917,0.29892,3351.8,3351.7,3.2078]
[1735734795317,0.29889,3352.2,3351.7,3.2078]
[1735734795520,0.74721,3352.3,3351.7,3.2078]
[1735734795720,0.29892,3351.8,3351.7,3.2078]
[1735734797115,0.74721,3352.3,3351.7,3.2078]
[1735734797414,0.29892,3351.8,3351.7,3.2078]
[1735734797813,0.74721,3352.3,3351.7,3.2078]
[1735734798011,0.29892,3351.8,3351.7,3.2078]
[1735734799712,0.74721,3352.3,3351.7,3.2078]
[1735734799921,0.29892,3351.9,3351.7,3.2078]
[1735734800225,0.29888,3352.3,3351.8,0.29892]
[1735734800417,0.2989,3352.1,3351.8,0.29892]
[1735734800614,0.29891,3352.0,3351.7,0.29893]
[1735734800818,0.29893,3351.7,3351.6,0.4604]
[1735734801022,3.2078,3352.1,3351.6,0.4604]
[1735734801219,0.29892,3351.9,3351.6,0.75934]
[1735734801422,0.29892,3351.8,3351.6,0.75934]
[1735734803612,0.29892,3351.9,3351.7,0.29893]
[1735734804022,3.2078,3352.1,3351.6,0.4604]
[1735734804222,0.29893,3351.8,3351.6,0.75934]
[1735734805121,0.29893,3351.8,3351.6,0.4604]
[1735734805324,0.29893,3351.8,3351.7,0.29893]
[1735734805621,0.29893,3351.8,3351.6,0.4604]
[1735734805823,0.29893,3351.8,3351.6,0.75934]
[1735734806216,5.46781819,3352.1,3351.6,0.4604]
[1735734806421,0.29893,3351.7,3351.6,0.4604]
[1735734808119,0.4433,3351.9,3351.4,0.865]
[1735734808316,0.29895,3351.5,3351.4,1.2953]
[1735734809123,0.29895,3351.5,3351.4,1.59426]
[1735734810328,0.4433,3351.9,3351.4,1.2953]
[1735734810530,0.29895,3351.6,3351.5,0.29895]
[1735734811132,0.4433,3351.9,3351.4,1.2953]
[1735734811329,0.29895,3351.5,3351.4,0.865]
[1735734811628,0.29895,3351.5,3351.4,0.4325]
[1735734815031,0.29896,3351.4,3351.3,3.2078]
[1735734815226,1.16216,3351.4,3351.3,3.2078]
[1735734815429,0.299,3351.0,3350.9,3.6325]
[1735734816630,0.299,3351.0,3350.9,3.2078]
[1735734819434,0.29904,3350.5,3350.4,0.4595]
[1735734819730,0.29906,3350.3,3350.2,2.71482032]
[1735734820924,3.00757819,3350.8,3350.2,2.71482032]
[1735734821134,0.29905,3350.4,3350.2,3.01388032]
[1735734822433,0.29904,3350.5,3350.3,0.29905]
[1735734822827,0.29905,3350.4,3350.2,3.45028032]
[1735734823231,2.26001819,3350.8,3350.2,3.45028032]
[1735734823430,0.29905,3350.4,3350.2,3.45028032]
[1735734824030,0.29905,3350.4,3350.2,0.73546]
[1735734825333,0.29905,3350.4,3350.2,0.73547]
[1735734826231,0.29906,3350.3,3350.2,0.4364]
[1735734827034,2.26001819,3350.8,3350.2,0.73547]
[1735734827035,0.29905,3350.4,3350.2,0.73547]
[1735734827240,0.29906,3350.3,3350.2,0.4364]
[1735734827434,0.29905,3350.4,3350.2,0.4364]
[1735734827630,2.26001819,3350.8,3350.2,0.4364]
[1735734828334,0.29906,3350.4,3350.2,0.4364]
[1735734828834,0.29906,3350.4,3350.2,0.73547]
[1735734829235,0.29906,3350.3,3350.2,0.4364]
[1735734830338,0.29907,3350.2,3350.1,3.6706]
[1735734832546,0.29907,3350.2,3350.1,0.4628]
[1735734833231,0.29907,3350.2,3350.1,3.6706]
[1735734838737,0.29907,3350.2,3350.1,3.2078]
[1735734841943,2.26001819,3350.8,3350.1,3.2078]
[1735734842146,2.26001819,3350.8,3350.6,3.2078]
[1735734842353,0.29902,3350.7,3350.6,3.2078]
[1735734842641,0.29902,3350.7,3350.6,3.6493]
[1735734842841,0.29902,3350.7,3350.6,4.1089]
[1735734843243,0.29902,3350.7,3350.6,4.40793]
[1735734844438,0.29902,3350.7,3350.6,4.1089]
[1735734845643,0.29902,3350.7,3350.6,0.9011]
[1735734845945,0.29902,3350.7,3350.6,4.1089]
[1735734849142,0.29902,3350.7,3350.6,3.2078]
[1735734852051,0.29907,3350.3,3350.2,3.2078]
[1735734852255,0.29907,3350.3,3350.2,3.50687]
[1735734853551,0.29907,3350.3,3350.2,3.2078]
[1735734853957,2.26001819,3350.8,3350.2,3.2078]
[1735734854256,0.29902,3350.7,3350.6,3.2078]
[1735734856851,0.74756,3350.7,3350.2,3.2078]
[1735734857150,0.29906,3350.3,3350.2,3.95847]
[1735734857352,0.29906,3350.3,3350.2,3.6594]
[1735734860360,2.26001819,3350.5,3350.3,0.29905]
[1735734860361,0.29904,3350.5,3350.3,0.29905]
[1735734860658,0.29904,3350.5,3350.3,1.15775]
[1735734861750,2.26001819,3350.8,3350.3,1.15775]
[1735734861954,0.29905,3350.4,3350.3,0.8587]
[1735734862456,3.00755819,3350.8,3350.2,3.95846]
[1735734863455,0.29906,3350.4,3350.2,3.95846]
[1735734864155,3.00757819,3350.8,3350.2,3.6594]
[1735734864359,0.29906,3350.3,3350.2,3.95846]
[1735734864955,3.00757819,3350.8,3350.2,3.95846]
[1735734865160,0.29904,3350.5,3350.4,0.29905]
[1735734865555,0.8793,3350.9,3350.2,3.6594]
[1735734865763,0.29905,3350.4,3350.2,3.95846]
[1735734865959,0.29905,3350.4,3350.3,0.29906]
[1735734866161,0.29904,3350.5,3350.4,0.29904]
[1735734866855,0.29904,3350.5,3350.2,3.6594]
[1735734866856,0.29904,3350.5,3350.3,0.29905]
[1735734867162,0.29904,3350.5,3350.4,0.9084]
[1735734868360,0.29904,3350.5,3350.4,4.1162]
[1735734870055,0.29904,3350.5,3350.4,3.2078]
[1735734870557,0.72474,3350.5,3350.4,3.2078]
[1735734875063,0.72474,3350.5,3350.2,0.4516]
[1735734875064,0.29906,3350.3,3350.2,0.4516]
[1735734875252,3.50686,3350.3,3350.2,0.4516]
[1735734875457,0.29909,3350.0,3349.8,4.3901]
[1735734875653,0.8849,3350.4,3349.9,0.4523]
[1735734875858,0.29908,3350.1,3349.9,0.4523]
[1735734876064,2.26001819,3350.3,3349.9,0.4523]
[1735734876259,0.29908,3350.0,3349.9,0.4523]
[1735734882970,2.55909819,3350.0,3349.9,0.4523]
[1735734884066,0.29909,3349.9,3349.8,3.2078]
[1735734884265,1.60749,3349.9,3349.8,3.2078]
[1735734887471,3.86750819,3349.9,3349.8,3.2078]
[1735734892081,0.29914,3349.4,3349.3,3.2078]
[1735734899190,1.04698,3349.5,3349.2,3.2078]
[1735734899486,0.29915,3349.3,3349.2,3.2078]
[1735734901983,3.14381819,3349.9,3349.2,3.2078]
[1735734902186,0.29913,3349.6,3349.5,0.29913]
[1735734902379,2.26001819,3349.9,3349.5,3.2078]
[1735734902586,0.2991,3349.8,3349.7,0.29911]
[1735734902987,3.2078,3350.4,3349.6,0.8555]
[1735734903187,0.29905,3350.4,3350.2,0.29906]
[1735734903394,0.29905,3350.4,3350.3,0.8555]
[1735734904592,2.26001819,3351.0,3350.3,0.8555]
[1735734904791,0.29902,3350.8,3350.6,3.2078]
[1735734905182,2.26001819,3351.0,3350.6,3.2078]
[1735734905392,0.29902,3350.7,3350.6,3.2078]
[1735734905793,2.55903819,3350.7,3350.6,3.2078]
[1735734907883,0.29902,3350.7,3350.6,3.2078]
[1735734908082,2.55903819,3350.7,3350.6,3.2078]
[1735734910788,0.29902,3350.7,3350.6,3.2078]
[1735734910990,3.49951,3351.5,3350.7,0.29902]
[1735734910991,0.299,3350.9,3350.7,0.29902]
[1735734911197,0.299,3350.9,3350.8,0.8934]
[1735734912593,2.26001819,3351.0,3350.6,3.2078]
[1735734912795,2.55903819,3350.7,3350.6,3.2078]
[1735734912990,0.29906,3350.3,3350.2,4.1012]
[1735734913193,0.29909,3349.9,3349.8,3.2078]
[1735734923307,0.29909,3349.9,3349.6,3.2078]
[1735734923501,0.876,3350.0,3349.6,3.2078]
[1735734923502,0.29911,3349.7,3349.6,3.2078]
[1735734933606,1.48711,3349.7,3349.6,3.2078]
[1735734933912,1.188,3349.7,3349.0,0.4428]
[1735734934109,0.29917,3349.1,3349.0,0.4428]
[1735734934508,1.17507,3349.1,3349.0,0.4428]
[1735734938114,0.29918,3348.9,3348.8,3.6736]
[1735734939912,2.55919819,3348.9,3348.8,3.6736]
[1735734940310,2.55919819,3348.9,3348.8,3.2078]
[1735734944614,0.29921,3348.6,3348.5,0.42]
[1735734945117,0.29921,3348.6,3348.5,0.8462]
[1735734947618,2.55922819,3348.6,3348.5,0.8462]
[1735734947826,2.55922819,3348.6,3348.5,0.42]
[1735734949721,2.55922819,3348.6,3348.5,0.8819]
[1735734951023,2.55922819,3348.6,3348.2,0.29924]
[1735734951024,0.29925,3348.1,3348.0,3.2078]
[1735734951426,0.29925,3348.2,3348.0,3.50706]
[1735734951727,0.29925,3348.1,3348.0,3.2078]
[1735734955223,0.29926,3348.0,3347.9,1.333]
[1735734955429,2.55927819,3348.0,3347.9,0.8827]
[1735734955626,2.55927819,3348.0,3347.9,0.4498]
[1735734956019,2.55927819,3348.0,3347.6,0.8679]
[1735734956020,0.29929,3347.7,3347.6,0.8679]
[1735734956222,2.55930819,3347.7,3347.6,1.3204]
[1735734957128,2.55930819,3347.7,3347.5,3.2078]
[1735734957426,2.26001819,3347.7,3347.1,3.2078]
[1735734957723,2.55935819,3347.2,3347.1,3.2078]
[1735734960232,0.29934,3347.2,3347.1,3.2078]
[1735734960928,2.55935819,3347.2,3347.1,3.2078]
[1735734963529,0.29934,3347.2,3347.1,3.2078]
[1735734965027,0.76252,3347.4,3347.1,3.50714]
[1735734965231,3.2078,3348.2,3347.2,0.8617]
[1735734965430,0.29926,3348.0,3347.9,3.2078]
[1735734965632,2.26001819,3348.5,3347.9,3.2078]
[1735734965831,0.29925,3348.1,3348.0,0.9088]